[Event "SRB-chT Men 1st League 2019"]
[Site "Subotica"]
[Date "2019.08.31"]
[Round "10.17"]
[White "Leskur, Dejan"]
[Black "Lazic, Miroljub"]
[Result "1/2-1/2"]
[ECO "C95"]
[WhiteElo "2303"]
[BlackElo "2387"]
[Annotator "NA"]
[PlyCount "48"]
[EventDate "2019.08.23"]
[EventType "team-tourn"]
[EventCountry "SRB"]
[SourceTitle "playchess.com"]
[Source "ChessBase"]
[SourceQuality "1"]
[TimeControl "40/5400+30:1800+30"]

1. e4 {[%emt 0:00:00]} e5 {[%emt 0:00:00]} 2. Nf3 {[%emt 0:00:00]} Nc6 {[%emt 0:00:08]} 3. Bb5 {[%emt 0:00:00]} a6 {[%emt 0:01:17]} 4. Ba4 {[%emt 0:00:00]} Nf6 {[%emt 0:02:06]} 5. O-O {[%emt 0:00:10]} Be7 {[%emt 0:00:45]} 6. Re1 {[%emt 0:00:07]} b5 {[%emt 0:00:09]} 7. Bb3 {[%emt 0:00:05]} d6 {[%emt 0:00:16]} 8. c3 {[%emt 0:00:07]} O-O {[%emt 0:00:09]} 9. h3 {[%emt 0:00:10]} Re8 {[%emt 0:01:43]} 10. Ng5 {[%emt 0:06:32]} Rf8 {[%emt 0:02:36]} 11. Nf3 {[%emt 0:00:06]} Nb8 {[%emt 0:10:03]} 12. d4 {[%emt 0:02:56]} Nbd7 {[%emt 0:00:11]} 13. Nbd2 {[%emt 0:01:40]} Bb7 {[%emt 0:00:20]} 14. Bc2 {[%emt 0:01:17]} Re8 {[%emt 0:01:09]} 15. Nf1 {[%emt 0:00:54]} Bf8 {[%emt 0:00:09]} 16. Ng3 {[%emt 0:00:05]} g6 {[%emt 0:04:53]} 17. b3 {[%emt 0:07:51]} Bg7 {[%emt 0:03:51]} 18. d5 {[%emt 0:07:07]} Rc8 {[%emt 0:08:14]} 19. a4 {[%emt 0:15:18]} bxa4 {[%emt 0:12:48]} 20. Rxa4 {[%emt 0:00:43]} c6 {[%emt 0:00:08]} 21. dxc6 {[%emt 0:03:53]} Rxc6 {[%emt 0:01:44]} 22. c4 {[%emt 0:01:19]} Nc5 {[%emt 0:04:18]} 23. Ra2 {[%emt 0:04:17]} Rc8 {[%emt 0:06:14]} 24. b4 {[%emt 0:03:51]} Ne6 {[%emt 0:38:49]} 1/2-1/2

[Event "SRB-chT Men 1st League 2019"]
[Site "Subotica"]
[Date "2019.08.31"]
[Round "10.18"]
[White "Laketic, Gojko"]
[Black "Omorjan, Dejan"]
[Result "0-1"]
[ECO "A26"]
[WhiteElo "2376"]
[BlackElo "2291"]
[Annotator "NA"]
[PlyCount "58"]
[EventDate "2019.08.23"]
[EventType "team-tourn"]
[EventCountry "SRB"]
[SourceTitle "playchess.com"]
[Source "ChessBase"]
[SourceQuality "1"]
[TimeControl "40/5400+30:1800+30"]

1. Nf3 {[%emt 0:00:00]} d6 {[%emt 0:01:15]} 2. g3 {[%emt 0:01:48]} g6 {[%emt 0:00:33]} 3. Bg2 {[%emt 0:01:09]} Bg7 {[%emt 0:00:10]} 4. c4 {[%emt 0:01:41]} Nf6 {[%emt 0:00:35]} 5. Nc3 {[%emt 0:00:39]} O-O {[%emt 0:00:49]} 6. O-O {[%emt 0:01:53]} Nc6 {[%emt 0:03:55]} 7. d3 {[%emt 0:10:46]} e5 {[%emt 0:00:49]} 8. Rb1 {[%emt 0:00:43]} a5 {[%emt 0:00:38]} 9. a3 {[%emt 0:02:01]} h6 {[%emt 0:00:43]} 10. b4 {[%emt 0:02:01]} axb4 {[%emt 0:01:18]} 11. axb4 {[%emt 0:00:02]} Be6 {[%emt 0:00:33]} 12. b5 {[%emt 0:12:47]} Ne7 {[%emt 0:00:51]} 13. Bb2 {[%emt 0:00:36]} Nd7 {[%emt 0:02:39]} 14. Ra1 {[%emt 0:06:01]} Nc5 {[%emt 0:08:18]} 15. Rxa8 {[%emt 0:03:10]} Qxa8 {[%emt 0:00:02]} 16. Qc2 {[%emt 0:00:11]} Qc8 {[%emt 0:04:15]} 17. Ra1 {[%emt 0:01:02]} Bh3 {[%emt 0:04:35]} 18. Bh1 {[%emt 0:00:50]} f5 {[%emt 0:04:52]} 19. Nd2 {[%emt 0:22:37]} f4 {[%emt 0:04:17]} 20. Nd5 {[%emt 0:01:57]} Nf5 {[%emt 0:04:17]} 21. Ne4 {[%emt 0:01:12]} Kh7 {[%emt 0:06:40]} 22. Nxc5 {[%emt 0:02:11]} dxc5 {[%emt 0:00:44]} 23. b6 {[%emt 0:08:22]} c6 {[%emt 0:07:36]} 24. Nc7 {[%emt 0:12:16]} fxg3 {[%emt 0:05:41]} 25. hxg3 {[%emt 0:00:24]} Nxg3 {[%emt 0:03:32]} 26. Bf3 {[%emt 0:00:13]} Rxf3 {[%emt 0:02:25]} 27. exf3 {[%emt 0:00:16]} Nh5 {[%emt 0:01:52]} 28. Kh2 {[%emt 0:06:14]} Nf4 {[%emt 0:01:34]} 29. Rg1 {[%emt 0:00:39]} Bg2 {[%emt 0:00:30]} 0-1

[Event "SRB-chT Men 1st League 2019"]
[Site "Subotica"]
[Date "2019.09.01"]
[Round "11.5"]
[White "Laketic, Gojko"]
[Black "Vucinic, Gojko"]
[Result "1/2-1/2"]
[ECO "D90"]
[WhiteElo "2376"]
[BlackElo "2396"]
[Annotator "NA"]
[PlyCount "27"]
[EventDate "2019.08.23"]
[EventType "team-tourn"]
[EventCountry "SRB"]
[SourceTitle "playchess.com"]
[Source "ChessBase"]
[SourceQuality "1"]
[TimeControl "40/5400+30:1800+30"]

1. d4 {[%emt 0:00:18]} Nf6 {[%emt 0:04:46]} 2. c4 {[%emt 0:00:17]} g6 {[%emt 0:00:02]} 3. Nc3 {[%emt 0:00:21]} d5 {[%emt 0:00:02]} 4. cxd5 {[%emt 0:00:27]} Nxd5 {[%emt 0:00:04]} 5. Bd2 {[%emt 0:00:11]} Bg7 {[%emt 0:00:06]} 6. Nf3 {[%emt 0:00:32]} c5 {[%emt 0:00:46]} 7. Rc1 {[%emt 0:00:50]} Nxc3 {[%emt 0:00:12]} 8. Bxc3 {[%emt 0:01:46]} cxd4 {[%emt 0:00:04]} 9. Nxd4 {[%emt 0:02:04]} O-O {[%emt 0:00:11]} 10. e3 {[%emt 0:00:51]} Bd7 {[%emt 0:11:20]} 11. Be2 {[%emt 0:01:37]} Nc6 {[%emt 0:01:22]} 12. O-O {[%emt 0:04:07]} Nxd4 {[%emt 0:02:33]} 13. Bxd4 {[%emt 0:00:11]} Be6 {[%emt 0:07:01]} 14. Bxg7 {[%emt 0:02:55]} 1/2-1/2

[Event "SRB-chT Men 1st League 2019"]
[Site "Subotica"]
[Date "2019.09.01"]
[Round "11.6"]
[White "Damjanovic, Vuk"]
[Black "Tesic, Dragan"]
[Result "0-1"]
[ECO "B28"]
[WhiteElo "2246"]
[BlackElo "2306"]
[Annotator "NA"]
[PlyCount "86"]
[EventDate "2019.08.23"]
[EventType "team-tourn"]
[EventCountry "SRB"]
[SourceTitle "playchess.com"]
[Source "ChessBase"]
[SourceQuality "1"]
[TimeControl "40/5400+30:1800+30"]

1. e4 {[%emt 0:02:01]} c5 {[%emt 0:00:19]} 2. Nf3 {[%emt 0:00:39]} e6 {[%emt 0:00:42]} 3. b3 {[%emt 0:01:12]} Nc6 {[%emt 0:01:30]} 4. Bb2 {[%emt 0:01:00]} d6 {[%emt 0:01:01]} 5. d4 {[%emt 0:00:37]} cxd4 {[%emt 0:06:35]} 6. Nxd4 {[%emt 0:00:17]} a6 {[%emt 0:02:00]} 7. c4 {[%emt 0:14:29]} Bd7 {[%emt 0:01:17]} 8. Nc3 {[%emt 0:00:27]} Nf6 {[%emt 0:00:21]} 9. Be2 {[%emt 0:00:34]} Be7 {[%emt 0:00:16]} 10. O-O {[%emt 0:00:45]} O-O {[%emt 0:00:56]} 11. Nc2 {[%emt 0:00:57]} Qc7 {[%emt 0:09:42]} 12. Qd2 {[%emt 0:01:26]} Rac8 {[%emt 0:01:24]} 13. Ne3 {[%emt 0:02:37]} Qb8 {[%emt 0:05:19]} 14. Rad1 {[%emt 0:10:00]} Rfd8 {[%emt 0:03:45]} 15. g4 {[%emt 0:11:59]} h6 {[%emt 0:04:20]} 16. f4 {[%emt 0:02:13]} Nh7 {[%emt 0:00:18]} 17. h4 {[%emt 0:11:43]} Bxh4 {[%emt 0:02:31]} 18. Bd3 {[%emt 0:01:22]} Bf6 {[%emt 0:05:06]} 19. Rf3 {[%emt 0:04:40]} Bd4 {[%emt 0:09:34]} 20. Kg2 {[%emt 0:02:24]} e5 {[%emt 0:01:12]} 21. Ncd5 {[%emt 0:05:32]} Bxb2 {[%emt 0:21:55]} 22. Qxb2 {[%emt 0:00:06]} exf4 {[%emt 0:01:37]} 23. Rxf4 {[%emt 0:00:11]} Re8 {[%emt 0:01:28]} 24. a4 {[%emt 0:08:03]} Ne5 {[%emt 0:01:45]} 25. a5 {[%emt 0:01:04]} Be6 {[%emt 0:00:48]} 26. Qd4 {[%emt 0:01:05]} Ng5 {[%emt 0:00:24]} 27. Nf5 {[%emt 0:04:33]} Bxf5 {[%emt 0:03:41]} 28. exf5 {[%emt 0:00:17]} f6 {[%emt 0:01:09]} 29. Kg3 {[%emt 0:03:16]} Nc6 {[%emt 0:00:56]} 30. Qc3 {[%emt 0:01:52]} Re5 {[%emt 0:00:16]} 31. Rf2 {[%emt 0:08:09]} Rce8 {[%emt 0:00:38]} 32. Rdd2 {[%emt 0:00:00]} Ne7 {[%emt 0:00:58]} 33. Nf4 {[%emt 0:00:00]} Qc7 {[%emt 0:02:52]} 34. b4 {[%emt 0:00:56]} Re3+ {[%emt 0:00:56]} 35. Kg2 {[%emt 0:00:32]} Qc6+ {[%emt 0:00:13]} 36. Kg1 {[%emt 0:00:25]} Nf3+ {[%emt 0:00:30]} 37. Rxf3 {[%emt 0:00:01]} Qxf3 {[%emt 0:00:12]} 38. Ng2 {[%emt 0:00:07]} Qg3 {[%emt 0:02:04]} 39. Qd4 {[%emt 0:00:18]} Nc6 {[%emt 0:00:28]} 40. Qd5+ {[%emt 0:00:00]} Kh8 {[%emt 0:00:00]} 41. Bf1 {[%emt 0:00:05]} Ne5 {[%emt 0:00:55]} 42. Kh1 {[%emt 0:00:17]} Nf3 {[%emt 0:00:16]} 43. Nxe3 {[%emt 0:00:33]} Qg1# {[%emt 0:00:37]} 0-1

[Event "SRB-chT Men 1st League 2019"]
[Site "Subotica"]
[Date "2019.09.01"]
[Round "11.9"]
[White "Radovanovic, Mihajlo"]
[Black "Savic, Miodrag R"]
[Result "1-0"]
[ECO "C00"]
[WhiteElo "2496"]
[BlackElo "2472"]
[Annotator "ChessBase"]
[PlyCount "135"]
[EventDate "2019.08.23"]
[EventType "team-tourn"]
[EventCountry "SRB"]
[SourceTitle "playchess.com"]
[Source "ChessBase"]
[SourceQuality "1"]
[TimeControl "40/5400+30:1800+30"]

1. Nf3 {[%emt 0:00:00]} Nf6 {[%emt 0:00:00]} 2. g3 {[%emt 0:00:45]} d5 {[%emt 0:00:00]} 3. Bg2 {[%emt 0:00:06]} e6 {[%emt 0:03:42]} 4. O-O {[%emt 0:00:21]} Be7 {[%emt 0:01:46]} 5. d3 {[%emt 0:01:25]} b6 {[%emt 0:00:19]} 6. Nbd2 {[%emt 0:00:42]} Bb7 {[%emt 0:00:07]} 7. e4 {[%emt 0:00:42]} c5 {[%emt 0:04:11]} 8. Re1 {[%emt 0:01:35]} Nc6 {[%emt 0:00:17]} 9. c3 {[%emt 0:05:18]} Qc7 {[%emt 0:02:08]} 10. a3 {[%emt 0:02:45]} a5 {[%emt 0:11:14]} 11. Nf1 {[%emt 0:13:32]} dxe4 {[%emt 0:09:38]} 12. dxe4 {[%emt 0:00:02]} Ba6 {[%emt 0:13:23]} 13. e5 {[%emt 0:02:49]} Nd7 {[%emt 0:05:27]} 14. Qa4 {[%emt 0:04:13]} O-O {[%emt 0:08:32]} 15. Qe4 {[%emt 0:09:44]} Rac8 {[%emt 0:00:01]} 16. Bg5 {[%emt 0:04:23]} h6 {[%emt 0:01:59]} 17. Bf4 {[%emt 0:02:42]} Bb7 {[%emt 0:00:38]} 18. Qe2 {[%emt 0:01:51]} Rfd8 {[%emt 0:04:25]} 19. h4 {[%emt 0:02:28]} Nf8 {[%emt 0:07:20]} 20. h5 {[%emt 0:00:16]} Nb8 {[%emt 0:04:47]} 21. N1h2 {[%emt 0:09:47]} Ba6 {[%emt 0:00:27]} 22. Qe3 {[%emt 0:00:06]} Rd3 {[%emt 0:01:14]} 23. Qc1 {[%emt 0:00:23]} Bb7 {[%emt 0:00:56]} 24. Be3 {[%emt 0:03:04]} Nh7 {[%emt 0:00:57]} 25. Bf1 {[%emt 0:01:28]} Rd7 {[%emt 0:01:27]} 26. a4 {[%emt 0:04:12]} Bc6 {[%emt 0:01:51]} 27. Bf4 {[%emt 0:01:01]} Qb7 {[%emt 0:00:51]} 28. Qe3 {[%emt 0:00:22]} Rcd8 {[%emt 0:00:06]} 29. Be2 {[%emt 0:03:52]} Bf8 {[%emt 0:01:09]} 30. Ng4 {[%emt 0:01:23]} c4 {[%emt 0:03:06]} 31. Nd4 {[%emt 0:01:00]} Bd5 {[%emt 0:01:20]} 32. Bf3 {[%emt 0:04:30]} Bc5 {[%emt 0:00:28]} 33. Bxd5 {[%emt 0:00:25]} Rxd5 {[%emt 0:02:33]} 34. Qf3 {[%emt 0:04:11]} Bxd4 {[%emt 0:00:48]} 35. cxd4 {[%emt 0:00:01]} Nc6 {[%emt 0:00:35]} 36. Rad1 {[%emt 0:06:28]} Qd7 {[%emt 0:00:58]} 37. Ne3 {[%emt 0:05:30]} Rxd4 {[%emt 0:01:12]} 38. Qg4 {[%emt 0:00:50]} Qe7 {[%emt 0:03:50]} 39. Rxd4 {[%emt 0:00:37]} Rxd4 {[%emt 0:00:02]} 40. Nc2 {[%emt 0:00:00]} Qb7 {[%emt 0:00:00]} 41. Nxd4 {[%emt 0:04:03]} Nxd4 {[%emt 0:05:19]} 42. Re3 {[%emt 0:00:02]} Nf5 {[%emt 0:07:03]} 43. Qf3 {[%emt 0:01:16]} Qd7 {[%emt 0:03:02]} 44. Re1 {[%emt 0:02:35]} Ne7 {[%emt 0:05:53]} 45. Qg4 {[%emt 0:03:46]} Kh8 {[%emt 0:02:07]} 46. Be3 {[%emt 0:00:49]} Qxa4 {[%emt 0:01:16]} 47. Rd1 {[%emt 0:00:48]} Qe8 {[%emt 0:01:53]} 48. Rd6 {[%emt 0:06:28]} Nf5 {[%emt 0:02:20]} 49. Rxb6 {[%emt 0:00:15]} Nxe3 {[%emt 0:00:07]} 50. fxe3 {[%emt 0:00:07]} Ng5 {[%emt 0:02:03]} 51. Qxc4 {[%emt 0:00:11]} Qd8 {[%emt 0:02:03]} 52. Rd6 {[%emt 0:00:25]} Qe8 {[%emt 0:04:34]} 53. Qd3 {[%emt 0:04:20]} Nf3+ {[%emt 0:00:07]} 54. Kf1 {[%emt 0:00:09]} Nxe5 {[%emt 0:00:12]} 55. Rd8 {[%emt 0:00:04]} Nxd3 {[%emt 0:00:17]} 56. Rxe8+ {[%emt 0:00:04]} Kh7 {[%emt 0:00:01]} 57. Rb8 {[%emt 0:01:01]} g6 {[%emt 0:00:01]} 58. Ke2 {[%emt 0:00:32]} Nc5 {[%emt 0:01:18]} 59. Rb5 {[%emt 0:00:35]} Ne4 {[%emt 0:00:01]} 60. Rxa5 {[%emt 0:00:56]} Kg7 {[%emt 0:01:11]} 61. b4 {[%emt 0:01:13]} Kf6 {[%emt 0:00:01]} 62. Kd3 {[%emt 0:01:37]} Nxg3 {[%emt 0:00:32]} 63. b5 {[%emt 0:01:16]} Ke7 {[%emt 0:01:54]} 64. Ra7+ {[%emt 0:00:11]} Kd8 {[%emt 0:00:36]} 65. Rxf7 {[%emt 0:00:48]} gxh5 {[%emt 0:00:02]} 66. b6 {[%emt 0:00:14]} Kc8 {[%emt 0:00:01]} 67. Kd4 {[%emt 0:00:35]} Nf5+ {[%emt 0:01:25]} 68. Kc5 {[%emt 0:00:07]} 1-0

[Event "SRB-chT Men 1st League 2019"]
[Site "Subotica"]
[Date "2019.09.01"]
[Round "11.10"]
[White "Todorovic, Goran M"]
[Black "Vuckovic, Bojan"]
[Result "0-1"]
[ECO "B30"]
[WhiteElo "2415"]
[BlackElo "2581"]
[Annotator "ChessBase"]
[PlyCount "48"]
[EventDate "2019.08.23"]
[EventType "team-tourn"]
[EventCountry "SRB"]
[SourceTitle "playchess.com"]
[Source "ChessBase"]
[SourceQuality "1"]
[TimeControl "40/5400+30:1800+30"]

1. e4 {[%emt 0:00:00]} c5 {[%emt 0:00:00]} 2. Nf3 {[%emt 0:00:00]} Nc6 {[%emt 0:00:00]} 3. Nc3 {[%emt 0:00:29]} e5 {[%emt 0:01:15]} 4. Bc4 {[%emt 0:00:09]} Be7 {[%emt 0:00:10]} 5. d3 {[%emt 0:00:09]} d6 {[%emt 0:00:17]} 6. O-O {[%emt 0:00:38]} Nf6 {[%emt 0:00:29]} 7. Ng5 {[%emt 0:00:09]} O-O {[%emt 0:00:17]} 8. f4 {[%emt 0:00:07]} Bg4 {[%emt 0:01:54]} 9. Qe1 {[%emt 0:01:35]} exf4 {[%emt 0:14:08]} 10. Bxf4 {[%emt 0:00:29]} Bh5 {[%emt 0:00:42]} 11. a3 {[%emt 0:08:21]} Nd4 {[%emt 0:03:23]} 12. Qd2 {[%emt 0:03:24]} Nd7 {[%emt 0:04:19]} 13. Nh3 {[%emt 0:18:35]} Ne5 {[%emt 0:06:40]} 14. Ba2 {[%emt 0:04:11]} Qd7 {[%emt 0:10:07]} 15. Nd5 {[%emt 0:09:07]} Bh4 {[%emt 0:07:11]} 16. Bg5 {[%emt 0:24:04]} Qg4 {[%emt 0:18:44]} 17. Kh1 {[%emt 0:07:54]} Nef3 {[%emt 0:05:18]} 18. gxf3 {[%emt 0:02:08]} Qxh3 {[%emt 0:02:00]} 19. Bxh4 {[%emt 0:04:05]} Bxf3+ {[%emt 0:01:07]} 20. Kg1 {[%emt 0:05:41]} Qxh4 {[%emt 0:00:17]} 21. Rf2 {[%emt 0:00:24]} Qg4+ {[%emt 0:02:09]} 22. Kf1 {[%emt 0:00:06]} Be2+ {[%emt 0:01:57]} 23. Qxe2 {[%emt 0:05:05]} Nxe2 {[%emt 0:00:12]} 24. Rxe2 {[%emt 0:00:02]} Qf3+ {[%emt 0:00:18]} 0-1

[Event "SRB-chT Men 1st League 2019"]
[Site "Subotica"]
[Date "2019.09.01"]
[Round "11.11"]
[White "Roganovic, Milos"]
[Black "Markovic, Miroslav"]
[Result "1/2-1/2"]
[ECO "B15"]
[WhiteElo "2505"]
[BlackElo "2394"]
[Annotator "ChessBase"]
[PlyCount "27"]
[EventDate "2019.08.23"]
[EventType "team-tourn"]
[EventCountry "SRB"]
[SourceTitle "playchess.com"]
[Source "ChessBase"]
[SourceQuality "1"]
[TimeControl "40/5400+30:1800+30"]

1. e4 {[%emt 1:30:30]} c6 {[%emt 1:30:30]} 2. Nc3 {[%emt 0:00:30]} d5 {[%emt 0:00:30]} 3. d4 {[%emt 0:00:30]} dxe4 {[%emt 0:00:30]} 4. Nxe4 {[%emt 0:00:30]} Nf6 {[%emt 0:00:30]} 5. Nxf6+ {[%emt 0:00:30]} exf6 {[%emt 0:00:30]} 6. Bc4 {[%emt 0:00:30]} Bd6 {[%emt 0:00:30]} 7. Qe2+ {[%emt 0:00:30]} Be7 {[%emt 0:00:30]} 8. Nf3 {[%emt 0:00:30]} O-O {[%emt 0:00:30]} 9. O-O {[%emt 0:00:30]} Bd6 {[%emt 0:00:30]} 10. h3 {[%emt 0:00:30]} Re8 {[%emt 0:00:30]} 11. Be3 {[%emt 0:00:30]} Nd7 {[%emt 0:00:30]} 12. Bb3 {[%emt 0:00:30]} Nf8 {[%emt 0:00:30]} 13. Qd2 {[%emt 0:00:30]} Qc7 {[%emt 0:00:30]} 14. Rfe1 {[%emt 0:00:30]} 1/2-1/2

[Event "SRB-chT Men 1st League 2019"]
[Site "Subotica"]
[Date "2019.09.01"]
[Round "11.17"]
[White "Budisavljevic, Luka"]
[Black "Simonovic, Aleksandar"]
[Result "1/2-1/2"]
[ECO "D00"]
[WhiteElo "2359"]
[BlackElo "2357"]
[Annotator "NA"]
[PlyCount "146"]
[EventDate "2019.08.23"]
[EventType "team-tourn"]
[EventCountry "SRB"]
[SourceTitle "playchess.com"]
[Source "ChessBase"]
[SourceQuality "1"]
[TimeControl "40/5400+30:1800+30"]

1. d4 {[%emt 0:00:00]} d5 {[%emt 0:00:00]} 2. Bf4 {[%emt 0:00:00]} c6 {[%emt 0:00:02]} 3. e3 {[%emt 0:00:00]} Qb6 {[%emt 0:00:31]} 4. b3 {[%emt 0:00:24]} Bf5 {[%emt 0:01:14]} 5. Bd3 {[%emt 0:00:05]} Bxd3 {[%emt 0:02:43]} 6. Qxd3 {[%emt 0:00:04]} e6 {[%emt 0:04:01]} 7. Nf3 {[%emt 0:00:04]} Nf6 {[%emt 0:06:51]} 8. O-O {[%emt 0:00:25]} Nbd7 {[%emt 0:07:07]} 9. c4 {[%emt 0:02:03]} Qa6 {[%emt 0:00:20]} 10. Qc2 {[%emt 0:07:01]} c5 {[%emt 0:14:09]} 11. Nc3 {[%emt 0:19:59]} dxc4 {[%emt 0:05:23]} 12. bxc4 {[%emt 0:00:28]} Bd6 {[%emt 0:00:57]} 13. Bxd6 $14 {[%emt 0:11:14]} Qxd6 {[%emt 0:00:07]} 14. d5 {[%emt 0:15:35]} exd5 {[%emt 0:16:28]} 15. cxd5 {[%emt 0:02:08]} O-O {[%emt 0:00:48]} 16. e4 {[%emt 0:00:36]} a6 {[%emt 0:06:07]} 17. a4 {[%emt 0:00:54]} b6 {[%emt 0:01:45]} 18. h3 {[%emt 0:02:14]} Nh5 {[%emt 0:00:59]} 19. Qd2 {[%emt 0:02:59]} f5 {[%emt 0:03:13]} 20. Ng5 {[%emt 0:06:39]} Rae8 {[%emt 0:10:10]} 21. exf5 {[%emt 0:02:32]} Rxf5 {[%emt 0:01:32]} 22. Rae1 {[%emt 0:00:47]} Rfe5 {[%emt 0:01:03]} 23. Rxe5 {[%emt 0:02:05]} Qxe5 {[%emt 0:01:03]} 24. Ne6 {[%emt 0:00:53]} Nhf6 {[%emt 0:00:44]} 25. Re1 {[%emt 0:01:01]} Qd6 {[%emt 0:00:51]} 26. Qg5 {[%emt 0:00:50]} Re7 {[%emt 0:00:32]} 27. Re3 {[%emt 0:05:15]} h6 {[%emt 0:02:09]} 28. Qf5 {[%emt 0:00:58]} b5 {[%emt 0:01:54]} 29. Rf3 {[%emt 0:11:10]} b4 {[%emt 0:01:16]} 30. Ne4 {[%emt 0:00:06]} Qxd5 {[%emt 0:00:55]} 31. Nxf6+ {[%emt 0:00:47]} Nxf6 {[%emt 0:00:03]} 32. Qxd5 {[%emt 0:05:27]} Nxd5 {[%emt 0:00:19]} 33. Nxc5 {[%emt 0:00:01]} Re1+ {[%emt 0:08:23]} 34. Kh2 {[%emt 0:00:01]} Nc3 {[%emt 0:00:32]} 35. a5 {[%emt 0:02:05]} Ra1 {[%emt 0:00:18]} 36. Nxa6 {[%emt 0:00:23]} b3 {[%emt 0:00:13]} 37. Rxc3 {[%emt 0:00:08]} b2 {[%emt 0:00:03]} 38. Rb3 {[%emt 0:00:03]} b1=Q {[%emt 0:00:28]} 39. Rxb1 {[%emt 0:00:01]} Rxb1 {[%emt 0:00:02]} 40. Nc7 {[%emt 0:00:00]} Rc1 {[%emt 0:00:00]} 41. Nd5 {[%emt 0:07:06]} Rc5 {[%emt 0:01:51]} 42. Ne3 {[%emt 0:00:52]} Rxa5 {[%emt 0:00:09]} 43. Kg3 {[%emt 0:00:59]} Ra3 {[%emt 0:01:40]} 44. h4 {[%emt 0:06:28]} Kf7 {[%emt 0:01:49]} 45. Kf4 {[%emt 0:02:02]} Ra4+ {[%emt 0:01:10]} 46. Kg3 {[%emt 0:00:06]} Ke6 {[%emt 0:00:52]} 47. f4 {[%emt 0:01:10]} Ra3 {[%emt 0:03:04]} 48. Kf3 {[%emt 0:00:33]} h5 {[%emt 0:00:21]} 49. Ke4 {[%emt 0:00:30]} Ra4+ {[%emt 0:28:19]} 50. Kf3 {[%emt 0:17:49]} Ra3 {[%emt 0:00:00]} 51. Ke4 {[%emt 0:00:00]} g6 {[%emt 0:00:00]} 52. Kf3 {[%emt 0:00:00]} Ra1 {[%emt 0:00:00]} 53. Ke4 {[%emt 0:00:00]} Rh1 {[%emt 0:00:00]} 54. g3 {[%emt 0:00:00]} Ra1 {[%emt 0:00:00]} 55. Kf3 {[%emt 0:00:00]} Ra2 {[%emt 0:00:00]} 56. Ke4 {[%emt 0:00:00]} Rf2 {[%emt 0:00:00]} 57. Nd1 {[%emt 0:00:00]} Rf1 {[%emt 0:00:00]} 58. Ne3 {[%emt 0:00:00]} Rg1 {[%emt 0:00:00]} 59. Kf3 {[%emt 0:00:00]} Rb1 {[%emt 0:00:00]} 60. Ke4 {[%emt 0:00:00]} Rb4+ {[%emt 0:00:00]} 61. Kf3 {[%emt 0:00:00]} Ra4 {[%emt 0:00:00]} 62. Kf2 {[%emt 0:00:00]} Kd6 {[%emt 0:00:00]} 63. Kf3 {[%emt 0:00:00]} Rb4 {[%emt 0:00:00]} 64. f5 {[%emt 0:02:18]} gxf5 {[%emt 0:01:45]} 65. Nxf5+ {[%emt 0:00:01]} Ke5 {[%emt 0:00:09]} 66. Ng7 {[%emt 0:00:14]} Rb3+ {[%emt 0:00:44]} 67. Kg2 {[%emt 0:00:15]} Ke4 {[%emt 0:01:00]} 68. Nxh5 {[%emt 0:00:06]} Rb2+ {[%emt 0:00:25]} 69. Kh3 {[%emt 0:02:56]} Kf3 {[%emt 0:00:09]} 70. Nf6 {[%emt 0:00:44]} Rb6 {[%emt 0:04:40]} 71. Ng4 {[%emt 0:01:01]} Rb5 {[%emt 0:00:14]} 72. Nh2+ {[%emt 0:00:16]} Kf2 {[%emt 0:00:06]} 73. Ng4+ {[%emt 0:01:49]} Kf3 {[%emt 0:00:10]} 1/2-1/2